bitfinex/quotes_BTCUSD_20251010
["timestamp","ask_amount","ask_price","bid_price","bid_amount"]
[1760118730667,0.26854661,117920.0,117910.0,0.17002089]
[1760118730871,0.09694,117920.0,117910.0,0.17002089]
[1760118731075,0.91761565,117920.0,117910.0,0.17002089]
[1760118731281,0.91561555,117920.0,117910.0,0.0004]
[1760118731496,0.91561555,117920.0,117910.0,0.17002089]
[1760118731894,1.16033555,117920.0,117910.0,0.0004]
[1760118732111,0.34817651,117920.0,117910.0,0.17002089]
[1760118732321,0.59289651,117920.0,117910.0,0.17002089]
[1760118732766,1.16033555,117920.0,117910.0,0.0014]
[1760118732945,1.16033555,117920.0,117910.0,0.0004]
[1760118733565,0.59285651,117920.0,117910.0,0.0004]
[1760118733738,1.16029555,117920.0,117910.0,0.0004]
[1760118733943,0.59285651,117920.0,117910.0,0.0004]
[1760118734944,0.34817651,117920.0,117910.0,0.0004]
[1760118735147,0.59281651,117920.0,117910.0,0.0004]
[1760118736219,0.34817651,117920.0,117910.0,0.0004]
[1760118736430,1.16025555,117920.0,117910.0,0.0004]
[1760118736586,1.24849555,117920.0,117910.0,0.0004]
[1760118736795,1.16017555,117920.0,117910.0,0.0004]
[1760118737003,1.24849555,117920.0,117910.0,0.0004]
[1760118737418,1.47625856,117920.0,117910.0,0.0004]
[1760118737621,3.28317396,117920.0,117910.0,0.0004]
[1760118737844,3.10520383,117920.0,117910.0,0.0004]
[1760118738052,1.91768983,117920.0,117910.0,0.0004]
[1760118738257,2.68356383,117920.0,117910.0,0.0004]
[1760118738462,2.68300983,117920.0,117910.0,0.0004]
[1760118738663,2.86761383,117920.0,117910.0,0.0004]
[1760118738935,1.91768983,117920.0,117910.0,0.0004]
[1760118739071,2.41732396,117920.0,117910.0,0.0004]
[1760118739288,2.74972596,117920.0,117910.0,0.0004]
[1760118739467,1.60761496,117920.0,117910.0,0.0004]
[1760118739668,2.36181896,117920.0,117910.0,0.0004]
[1760118739869,2.11729896,117920.0,117910.0,0.0004]
[1760118740075,2.60278296,117920.0,117910.0,0.0004]
[1760118740288,2.41496496,117920.0,117910.0,0.0004]
[1760118740513,2.37044496,117920.0,117910.0,0.0004]
[1760118740710,1.94041496,117920.0,117910.0,0.0004]
[1760118740916,2.66436996,117920.0,117910.0,0.0004]
[1760118741119,2.50870996,117920.0,117910.0,0.0004]
[1760118741320,2.14106196,117920.0,117910.0,0.0004]
[1760118741526,2.55240196,117920.0,117910.0,0.0004]
[1760118741749,1.94045496,117920.0,117910.0,0.0004]
[1760118741958,2.59979196,117920.0,117910.0,0.0004]
[1760118742400,2.65156996,117920.0,117910.0,0.0004]
[1760118742600,2.31962996,117920.0,117910.0,0.0004]
[1760118742809,2.51519096,117920.0,117910.0,0.0004]
[1760118743036,1.94718496,117920.0,117910.0,0.0004]
[1760118743222,2.11372491,117920.0,117910.0,0.0004]
[1760118743416,1.97088991,117920.0,117910.0,0.0004]
[1760118743621,1.88252991,117920.0,117910.0,0.0004]
[1760118743832,1.97088991,117920.0,117910.0,0.0004]
[1760118744077,2.47509826,117920.0,117910.0,0.0004]
[1760118744219,4.65078589,117920.0,117910.0,0.0004]
[1760118744444,3.12769867,117920.0,117910.0,0.0004]
[1760118744645,2.30323667,117920.0,117910.0,0.0004]
[1760118744835,3.32772267,117920.0,117910.0,0.0004]
[1760118745036,3.30622167,117920.0,117910.0,0.0004]
[1760118745235,3.40706116,117920.0,117910.0,0.0004]
[1760118745550,3.56319753,117920.0,117910.0,0.0004]
[1760118745771,3.60548053,117920.0,117910.0,0.0004]
[1760118746001,3.73124553,117920.0,117910.0,0.0004]
[1760118746205,3.68290758,117920.0,117910.0,0.0004]
[1760118746410,4.25882158,117920.0,117910.0,0.0004]
[1760118746600,2.33420958,117920.0,117910.0,0.0004]
[1760118746821,4.24112758,117920.0,117910.0,0.0004]
[1760118747031,4.58288758,117920.0,117910.0,0.0004]
[1760118747188,4.41199458,117920.0,117910.0,0.0004]
[1760118747399,4.30666758,117920.0,117910.0,0.0004]
[1760118747599,4.32125232,117920.0,117910.0,0.0004]
[1760118747800,1.97731732,117920.0,117910.0,0.0004]
[1760118748046,2.49923732,117920.0,117910.0,0.0004]
[1760118748274,3.01080865,117920.0,117910.0,0.0004]
[1760118748409,3.32718386,117920.0,117910.0,0.0004]
[1760118748602,2.33570786,117920.0,117910.0,0.0004]
[1760118748989,3.13765286,117920.0,117910.0,0.0004]
[1760118749191,3.23279104,117920.0,117910.0,0.0004]
[1760118749390,3.49464204,117920.0,117910.0,0.0004]
[1760118749616,3.33433604,117920.0,117910.0,0.0004]
[1760118749821,2.29794304,117920.0,117910.0,0.0004]
[1760118750033,3.45063604,117920.0,117910.0,0.0004]
[1760118750236,4.19888798,117920.0,117910.0,0.0004]
[1760118750541,4.13218201,117920.0,117910.0,0.0004]
[1760118750685,4.27036901,117920.0,117910.0,0.0004]
[1760118750867,2.65870801,117920.0,117910.0,0.0004]
[1760118751081,4.72138101,117920.0,117900.0,0.50005]
[1760118751292,2.35825142,117910.0,117900.0,0.50005]
[1760118751523,2.39118991,117910.0,117900.0,0.50005]
[1760118751676,2.35943291,117910.0,117900.0,0.50005]
[1760118751896,2.44525075,117910.0,117900.0,0.50005]
[1760118752093,2.40694443,117910.0,117900.0,0.50005]
[1760118752278,2.38982443,117910.0,117900.0,0.50005]
[1760118752764,1.26174238,117910.0,117900.0,0.50005]
[1760118752900,2.06295643,117910.0,117900.0,0.50005]
[1760118753252,0.80323938,117910.0,117900.0,0.50005]
[1760118753451,0.85413742,117910.0,117900.0,0.50005]
[1760118753655,0.75865742,117910.0,117900.0,0.50005]
[1760118755182,0.25617489,117910.0,117900.0,0.69154528]
[1760118755382,0.28563204,117910.0,117900.0,0.70520528]
[1760118755815,0.04111204,117910.0,117900.0,0.70520528]
[1760118756018,0.01826921,117910.0,117900.0,0.80198734]
[1760118757373,0.01826921,117910.0,117900.0,0.80298734]
[1760118757559,0.45527505,117920.0,117900.0,0.78932734]
[1760118757769,0.34807099,117910.0,117900.0,0.50105]
[1760118758026,0.60886704,117910.0,117900.0,0.67068528]
[1760118758265,1.40406909,117910.0,117900.0,0.50105]
[1760118758474,1.45737075,117910.0,117900.0,0.50005]
[1760118758914,1.42691192,117910.0,117900.0,0.50005]
[1760118759131,0.38718987,117910.0,117900.0,0.50005]
[1760118759377,0.6621687,117910.0,117900.0,0.50105]
[1760118760079,2.34807767,117910.0,117900.0,0.50105]
[1760118760287,2.30241757,117910.0,117900.0,0.50105]
[1760118760723,2.14818983,117910.0,117900.0,0.50105]
[1760118761355,2.10245457,117910.0,117900.0,0.50105]
[1760118761558,2.10245457,117910.0,117900.0,0.50005]
[1760118761685,2.08973657,117910.0,117900.0,0.50005]
[1760118761894,1.19769052,117910.0,117900.0,0.50005]
[1760118762139,0.84981171,117910.0,117900.0,0.50005]
[1760118762776,1.64501376,117910.0,117900.0,0.50005]
[1760118763181,1.31213376,117910.0,117900.0,0.50005]
[1760118763383,1.67551938,117910.0,117900.0,0.50005]
[1760118764154,1.14962533,117910.0,117900.0,0.50005]
[1760118764358,1.48962533,117910.0,117900.0,0.50005]
[1760118764583,1.93926657,117910.0,117900.0,0.50005]
[1760118764800,3.97087014,117910.0,117900.0,1e-08]
[1760118765021,7.78528042,117910.0,117900.0,1e-08]
[1760118765345,8.11096131,117910.0,117900.0,1e-08]
[1760118765879,8.19901567,117910.0,117900.0,1e-08]
[1760118766107,0.34,117870.0,117860.0,0.52784351]
[1760118766365,1.46546274,117870.0,117860.0,0.52784351]
[1760118766527,2.56066479,117870.0,117860.0,0.52784351]
[1760118766691,5.9113805,117870.0,117860.0,0.52784351]
[1760118766928,4.18302962,117870.0,117860.0,0.52784351]
[1760118767134,5.45069388,117870.0,117860.0,0.52784351]
[1760118767526,3.00411938,117870.0,117860.0,0.52834708]
[1760118767717,4.87335638,117870.0,117860.0,0.52834708]
[1760118767930,4.53466433,117870.0,117860.0,0.52834708]
[1760118768131,5.47344888,117870.0,117860.0,0.52834708]
[1760118768344,5.33502997,117870.0,117860.0,0.52834708]
[1760118768554,5.57245797,117870.0,117860.0,0.27734708]
[1760118768758,2.30066897,117870.0,117860.0,0.27734708]
[1760118768964,4.06654797,117870.0,117860.0,0.27734708]
[1760118769175,3.87474808,117870.0,117860.0,0.27734708]
[1760118769349,4.69530897,117870.0,117860.0,0.27734708]
[1760118769561,5.41511297,117870.0,117860.0,0.27734708]
[1760118769777,5.59472084,117870.0,117860.0,0.27734708]
[1760118770092,5.57248184,117870.0,117860.0,0.27734708]
[1760118770301,5.65208084,117870.0,117860.0,0.27734708]
[1760118770507,5.25192839,117870.0,117860.0,0.27734708]
[1760118770838,5.95928539,117870.0,117860.0,0.27734708]
[1760118771055,2.20088634,117870.0,117860.0,0.27734708]
[1760118771273,2.99608839,117870.0,117860.0,0.27734708]
[1760118771696,5.38075339,117870.0,117860.0,0.27734708]
[1760118771867,5.50590184,117870.0,117860.0,0.27734708]
[1760118772136,4.59017484,117870.0,117860.0,0.27734708]
[1760118772353,5.68055049,117870.0,117860.0,1e-08]
[1760118772566,7.17566043,117870.0,117860.0,1e-08]
[1760118772779,7.26403343,117870.0,117860.0,1e-08]
[1760118772992,7.15378243,117870.0,117860.0,1e-08]
[1760118773175,3.19582188,117870.0,117860.0,1e-08]
[1760118773467,2.72473984,117860.0,117850.0,0.13773334]
[1760118773676,1.52527495,117860.0,117850.0,0.13773334]
[1760118773883,4.59153736,117860.0,117850.0,0.13773334]
[1760118774094,4.59720025,117860.0,117850.0,0.13773334]
[1760118774296,4.79117155,117860.0,117850.0,0.13773334]
[1760118774459,4.67506155,117860.0,117850.0,0.13773334]
[1760118774612,3.72037888,117860.0,117850.0,0.13773334]
[1760118774814,2.39059688,117860.0,117850.0,0.13773334]
[1760118775016,3.67903589,117860.0,117850.0,0.13773334]
[1760118775222,4.54510289,117860.0,117850.0,0.13773334]
[1760118775564,4.40597233,117860.0,117850.0,0.13773334]
[1760118775775,4.58805532,117860.0,117850.0,0.13773334]
[1760118775982,4.61569232,117860.0,117850.0,0.13773334]
[1760118776387,2.40611132,117860.0,117850.0,0.13773334]
[1760118776542,2.67717727,117860.0,117850.0,0.13773334]
[1760118776752,4.41330532,117860.0,117850.0,0.13773334]
[1760118776965,2.70611132,117860.0,117850.0,0.13773334]
[1760118777160,2.88585738,117860.0,117850.0,0.13773334]
[1760118777382,1.06396824,117860.0,117850.0,0.13773334]
[1760118777588,0.62225921,117860.0,117850.0,0.13773334]
[1760118777795,0.94324121,117860.0,117850.0,0.13773334]
[1760118777999,1.28324121,117860.0,117850.0,0.13773334]
[1760118779032,1.40251921,117860.0,117850.0,0.13773334]
[1760118779227,1.35839621,117860.0,117850.0,0.13773334]
[1760118779430,0.82810821,117860.0,117850.0,0.13773334]
[1760118779766,1.16114821,117860.0,117850.0,0.13773334]
[1760118780364,0.45487418,117860.0,117850.0,0.13773334]
[1760118780582,0.69951418,117860.0,117850.0,0.13773334]
[1760118780786,1.84649029,117860.0,117850.0,0.13773334]
[1760118781014,0.78263624,117860.0,117850.0,0.13773334]
[1760118781215,2.05448729,117860.0,117850.0,0.13773334]
[1760118781353,1.29678699,117860.0,117850.0,0.13773334]
[1760118781560,2.00358904,117860.0,117850.0,0.13773334]
[1760118781766,1.29678699,117860.0,117850.0,0.13773334]
[1760118782181,2.12234964,117860.0,117850.0,0.13773334]
[1760118782962,1.32714759,117860.0,117850.0,0.13773334]
[1760118783169,1.29678699,117860.0,117850.0,0.13773334]
[1760118783380,0.81135256,117860.0,117850.0,0.13773334]
[1760118783602,0.78859624,117860.0,117850.0,0.13773334]
[1760118783809,1.12163624,117860.0,117850.0,0.13773334]
[1760118784251,1.12163624,117860.0,117850.0,0.22578334]
[1760118784252,0.28342418,117860.0,117850.0,0.22578334]
[1760118784451,0.50978803,117860.0,117850.0,0.16915334]
[1760118784661,0.59577803,117860.0,117850.0,0.16915334]
[1760118784883,0.59577803,117860.0,117850.0,0.13773334]
[1760118785098,0.61397941,117860.0,117850.0,0.13773334]
[1760118785513,2.05070652,117860.0,117850.0,0.13773334]
[1760118785725,1.95563552,117860.0,117850.0,0.13773334]
[1760118785966,1.14255447,117860.0,117850.0,0.13773334]
[1760118786234,1.12554147,117860.0,117850.0,0.13773334]
[1760118787310,1.14829779,117860.0,117850.0,0.13773334]
[1760118788199,1.05993779,117860.0,117850.0,0.13773334]
[1760118788407,1.14833779,117860.0,117850.0,0.13773334]
[1760118788615,1.14833779,117860.0,117850.0,0.13769288]
[1760118789037,0.52798941,117860.0,117850.0,0.30740013]
[1760118789252,0.61397941,117860.0,117850.0,0.13769288]
[1760118790118,0.36933941,117860.0,117850.0,0.13769288]
[1760118790325,0.61397941,117860.0,117850.0,0.13769288]
[1760118790738,0.52798941,117860.0,117850.0,0.36403013]
[1760118790954,0.11365656,117860.0,117850.0,0.39545013]
[1760118791174,0.60071813,117860.0,117850.0,0.13769288]
[1760118791375,0.61797799,117860.0,117850.0,0.13769288]
[1760118791908,0.61697799,117860.0,117850.0,0.13769288]
[1760118792311,0.61797799,117860.0,117850.0,0.13769288]
[1760118793334,0.53198799,117860.0,117850.0,0.13769288]
[1760118793919,0.61797799,117860.0,117850.0,0.13769288]
[1760118795705,0.53198799,117860.0,117850.0,0.13769288]
[1760118795914,0.61797799,117860.0,117850.0,0.13769288]
[1760118796343,0.09999999,117840.0,117820.0,0.39583416]
[1760118796513,0.68459999,117840.0,117830.0,0.25285812]
[1760118797300,0.43999999,117840.0,117830.0,0.25285812]
[1760118797502,0.68459999,117840.0,117830.0,0.25285812]
[1760118797705,0.68459999,117840.0,117830.0,0.26134492]
[1760118799446,0.43999999,117840.0,117830.0,0.26134492]
[1760118799651,0.68459999,117840.0,117830.0,0.26134492]
[1760118800093,0.43999999,117840.0,117830.0,0.26134492]
[1760118800300,0.68459999,117840.0,117830.0,0.26134492]
[1760118801739,0.43999999,117840.0,117830.0,0.26134492]
[1760118801936,0.5846,117840.0,117830.0,0.26134492]
[1760118802169,0.68459999,117840.0,117830.0,0.26134492]
[1760118802578,0.34459999,117840.0,117830.0,0.26134492]
[1760118803293,0.34,117850.0,117840.0,0.16972165]
[1760118803494,0.43999999,117850.0,117840.0,0.25284371]
[1760118803695,0.34050518,117860.0,117850.0,0.16970725]
[1760118803906,1.2531765,117860.0,117850.0,0.16970725]
[1760118804207,0.44050517,117860.0,117850.0,0.25282931]
[1760118804350,1.15317651,117860.0,117850.0,0.25282931]
[1760118804545,0.81317651,117860.0,117850.0,0.25282931]
[1760118805192,0.9131765,117860.0,117850.0,0.25282931]
[1760118805392,0.56957651,117860.0,117850.0,0.25282931]
[1760118805607,0.81417651,117860.0,117850.0,0.25282931]
[1760118806403,0.00150518,117860.0,117850.0,0.25282931]
[1760118806571,0.56957651,117860.0,117850.0,0.25282931]
[1760118806771,0.6695765,117860.0,117850.0,0.25282931]
[1760118807260,1.23764783,117860.0,117850.0,0.08312206]
[1760118807443,1.23764783,117860.0,117830.0,0.17822286]
[1760118807444,0.26970724,117850.0,117830.0,0.27011021]
[1760118807582,0.82967133,117840.0,117830.0,0.27836687]
[1760118807788,0.81267133,117840.0,117830.0,0.25285666]
[1760118808185,0.81263133,117840.0,117830.0,0.25285666]
[1760118808666,0.81263133,117840.0,117830.0,0.08312206]
[1760118808800,1.14369297,117840.0,117830.0,0.08312206]
[1760118809159,1.02046132,117840.0,117830.0,0.25285812]
[1760118809323,0.91263132,117840.0,117830.0,0.25285812]
[1760118810161,0.91263132,117840.0,117830.0,0.08312206]
[1760118810162,1.08235297,117840.0,117830.0,0.08312206]
[1760118810365,1.14369297,117840.0,117830.0,0.08312206]
[1760118810622,1.19018297,117840.0,117830.0,0.08312206]
[1760118810963,0.26973762,117830.0,117810.0,0.22072]
[1760118811172,0.33107762,117830.0,117820.0,0.08312206]
[1760118811368,0.16133999,117830.0,117820.0,0.25287252]
[1760118811598,0.09999999,117830.0,117820.0,0.25287252]
[1760118811849,0.33107605,117830.0,117820.0,0.08312206]
[1760118812035,0.37756605,117830.0,117820.0,0.08312206]
[1760118812251,0.94563738,117830.0,117820.0,0.08312206]
[1760118812591,0.77590132,117830.0,117820.0,0.25287252]
[1760118813154,0.91263132,117830.0,117820.0,0.25387252]
[1760118813510,0.66807132,117830.0,117820.0,0.25387252]
[1760118813719,0.91263132,117830.0,117820.0,0.25387252]
[1760118815670,0.34455999,117830.0,117820.0,0.25387252]
[1760118815894,0.91263132,117830.0,117820.0,0.25387252]
[1760118816105,0.81263133,117830.0,117820.0,0.25387252]
[1760118816308,0.91263132,117830.0,117820.0,0.25387252]
[1760118816957,0.66807132,117830.0,117820.0,0.25387252]
[1760118817371,0.56807133,117830.0,117820.0,0.25387252]
[1760118817652,0.68507132,117840.0,117830.0,0.16973606]
[1760118817873,0.81263133,117840.0,117830.0,0.25285812]
[1760118818093,0.91263132,117840.0,117830.0,0.25285812]
[1760118818750,0.11699999,117840.0,117830.0,0.25285812]
[1760118819003,0.58507133,117840.0,117830.0,0.25285812]
[1760118819231,0.56807133,117850.0,117830.0,0.26134492]
[1760118819458,0.81263133,117850.0,117840.0,0.25283092]
[1760118819685,0.94444112,117850.0,117840.0,0.25283092]
[1760118819907,0.61688113,117850.0,117840.0,0.25283092]
[1760118820323,0.71688112,117850.0,117840.0,0.25283092]
[1760118820765,0.61688113,117850.0,117840.0,0.25283092]
[1760118821378,0.017,117850.0,117840.0,0.25283092]
[1760118821591,0.36206517,117860.0,117850.0,0.16970725]
[1760118821799,0.36206517,117860.0,117850.0,0.25282931]
[1760118822122,0.10050517,117860.0,117850.0,0.25282931]
[1760118822393,0.00050518,117860.0,117850.0,0.25282931]
[1760118822607,0.01750518,117860.0,117850.0,0.25282931]
[1760118822860,0.56858956,117860.0,117850.0,0.25282931]
[1760118823077,0.66858955,117860.0,117850.0,0.25282931]
[1760118823548,0.56858956,117860.0,117850.0,0.25282931]
[1760118823789,0.66858955,117860.0,117850.0,0.25282931]
[1760118824045,0.66958955,117860.0,117850.0,0.25282931]
[1760118824494,0.00150518,117860.0,117850.0,0.25282931]
[1760118824706,0.00150518,117860.0,117850.0,0.28298121]
[1760118825132,0.56958956,117860.0,117850.0,0.25282931]
[1760118825361,0.56858956,117860.0,117850.0,0.25282931]
[1760118825564,0.81314956,117860.0,117850.0,0.25282931]
[1760118825783,1.1441824,117860.0,117850.0,0.08312206]
[1760118825998,1.2895224,117860.0,117850.0,0.001]
[1760118826201,1.02097955,117860.0,117850.0,0.001]
[1760118826404,1.02097955,117860.0,117850.0,0.17070725]
[1760118826633,1.02097955,117860.0,117850.0,0.16970725]
[1760118827249,0.91314955,117860.0,117850.0,0.16970725]
[1760118827466,0.66858955,117860.0,117850.0,0.25382931]
[1760118827780,0.10050517,117860.0,117850.0,0.25382931]
[1760118827982,0.10150517,117860.0,117850.0,0.25382931]
[1760118828446,0.10050517,117860.0,117850.0,0.25382931]
[1760118829224,0.56858956,117860.0,117850.0,0.25382931]
[1760118829451,0.66858955,117860.0,117850.0,0.25382931]
[1760118829651,0.10050517,117860.0,117850.0,0.25382931]
[1760118829815,0.66858955,117860.0,117850.0,0.25382931]
[1760118830229,0.91310955,117860.0,117850.0,0.25382931]
[1760118830533,0.34502517,117860.0,117850.0,0.25382931]
[1760118830916,0.91310955,117860.0,117850.0,0.25382931]
[1760118831116,0.97621955,117860.0,117850.0,0.25382931]
[1760118831320,0.91310955,117860.0,117850.0,0.25382931]
[1760118831533,0.34502517,117860.0,117850.0,0.25382931]
[1760118831730,0.10050517,117860.0,117850.0,0.25382931]
[1760118832206,0.00050518,117860.0,117850.0,0.25382931]
[1760118832625,0.10050517,117860.0,117850.0,0.25382931]
[1760118832830,0.10050517,117860.0,117850.0,0.49834931]
[1760118833234,0.00050518,117860.0,117850.0,0.25382931]
[1760118833444,0.00050518,117860.0,117850.0,0.49834931]
[1760118835074,0.00054518,117860.0,117850.0,0.49834931]
[1760118835275,0.10054517,117860.0,117850.0,0.49834931]
[1760118835500,0.00054518,117860.0,117850.0,0.49834931]
[1760118835702,0.00054518,117860.0,117850.0,0.25382931]
[1760118835889,0.00054518,117860.0,117850.0,0.49834931]
[1760118836479,0.00054518,117860.0,117850.0,1.09658559]
[1760118836799,0.00054518,117860.0,117850.0,1.43654559]
[1760118837730,0.00054518,117860.0,117850.0,0.86846121]
[1760118838305,0.00054518,117860.0,117850.0,0.62398121]
[1760118838587,0.00054518,117860.0,117850.0,0.86846121]
[1760118838977,0.00054518,117860.0,117850.0,1.43654559]
[1760118839176,0.00054518,117860.0,117850.0,0.62398121]
[1760118839564,0.00054518,117860.0,117850.0,0.95682121]
[1760118840397,0.00054518,117860.0,117850.0,1.52490559]
[1760118840551,0.72263941,117910.0,117880.0,0.17814726]
[1760118840752,0.19999999,117900.0,117890.0,0.26972379]
[1760118841061,0.19999999,117900.0,117890.0,0.25275883]
[1760118841339,0.2085084,117900.0,117890.0,0.25275883]
[1760118841521,0.84128278,117900.0,117890.0,0.25275883]
[1760118842124,0.84228278,117900.0,117890.0,0.25275883]
[1760118842326,0.77759278,117900.0,117890.0,0.25275883]
[1760118842484,0.77859278,117900.0,117890.0,0.25275883]
[1760118842693,0.2105084,117900.0,117890.0,0.25275883]
[1760118843123,0.20199999,117900.0,117890.0,0.25275883]
[1760118843511,0.77008437,117900.0,117890.0,0.25275883]
[1760118843733,0.20199999,117900.0,117890.0,0.25275883]
[1760118843955,0.84329489,117900.0,117890.0,0.25275883]
[1760118844151,0.77860489,117900.0,117890.0,0.25275883]
[1760118845539,0.77860489,117900.0,117890.0,0.49719883]
[1760118845750,0.77008437,117900.0,117890.0,0.74569883]
[1760118845962,0.77008437,117900.0,117890.0,0.50125883]
[1760118846172,0.77008437,117900.0,117890.0,0.72751883]
[1760118846384,0.77008437,117900.0,117890.0,0.31344206]
[1760118846385,0.73477437,117900.0,117890.0,0.31344206]
[1760118846599,1.52218403,117900.0,117890.0,0.31344206]
[1760118846719,1.52218403,117900.0,117890.0,0.2485]
[1760118846923,0.95409965,117900.0,117890.0,0.2485]
[1760118847133,1.49038965,117900.0,117890.0,0.41814967]
[1760118847361,1.39729965,117900.0,117890.0,0.2485]
[1760118847569,1.39829965,117900.0,117890.0,0.41814967]
[1760118847781,1.11428437,117900.0,117890.0,0.41814967]
[1760118847954,1.11328437,117900.0,117890.0,0.41814967]
[1760118848327,1.11228437,117900.0,117890.0,0.41914967]
[1760118848609,1.11228437,117900.0,117890.0,0.41814967]
[1760118849198,1.17697437,117900.0,117890.0,0.41814967]
[1760118849382,1.17697437,117900.0,117890.0,0.41914967]
[1760118849577,1.35672437,117900.0,117890.0,0.41914967]
[1760118850575,0.78863999,117900.0,117890.0,0.41914967]
[1760118850775,1.35672437,117900.0,117890.0,0.41914967]
[1760118850977,1.59104965,117900.0,117890.0,0.2495]
[1760118851117,1.64073965,117900.0,117890.0,0.2495]
[1760118851324,1.07265527,117900.0,117890.0,0.2495]
[1760118851523,1.64073965,117900.0,117890.0,0.2495]
[1760118851788,1.47110437,117900.0,117890.0,0.2495]
[1760118851982,1.73282965,117900.0,117890.0,0.2495]
[1760118852185,2.30091403,117900.0,117890.0,0.2495]
[1760118852357,2.65791403,117900.0,117890.0,0.2495]
[1760118852542,2.64091403,117900.0,117890.0,0.2495]
[1760118852959,2.75931776,117900.0,117890.0,0.2495]
[1760118853163,2.78946966,117900.0,117890.0,0.2495]
[1760118853405,3.30036621,117900.0,117890.0,0.2495]
[1760118853627,3.24843421,117900.0,117890.0,0.2495]
[1760118853847,2.84552353,117900.0,117890.0,0.2495]
[1760118853988,1.28832945,117900.0,117890.0,0.2495]
[1760118854178,2.42449902,117900.0,117890.0,0.2485]
[1760118854613,2.44149902,117900.0,117890.0,0.2485]
[1760118855276,2.10973902,117900.0,117890.0,0.2485]
[1760118855492,2.34622966,117900.0,117890.0,0.2485]
[1760118855657,2.43458966,117900.0,117890.0,0.2485]
[1760118856212,2.44250314,117900.0,117890.0,0.2485]
[1760118856423,2.46010124,117900.0,117890.0,0.2485]
[1760118856632,2.77798824,117900.0,117890.0,0.2485]
[1760118857463,2.40361924,117900.0,117890.0,0.2485]
[1760118857686,2.71941924,117900.0,117890.0,0.2485]
[1760118857906,2.74217556,117900.0,117890.0,0.2485]
[1760118858155,2.75008945,117900.0,117890.0,0.2485]
[1760118858378,1.59116437,117900.0,117890.0,0.2485]
[1760118858584,2.71941924,117900.0,117890.0,0.2485]
[1760118858798,2.61941925,117900.0,117890.0,0.2485]
[1760118858942,2.71941924,117900.0,117890.0,0.2485]
[1760118859139,2.3643801,117900.0,117890.0,0.2485]
[1760118859344,2.60267641,117900.0,117890.0,0.2485]
[1760118859546,2.26222359,117900.0,117890.0,0.2485]
[1760118859751,2.26222316,117900.0,117890.0,0.2485]
[1760118860412,1.63973653,117900.0,117890.0,0.2485]
[1760118860633,2.07253652,117900.0,117890.0,0.2485]
[1760118860840,2.04702494,117900.0,117890.0,0.2485]
[1760118861156,2.24887594,117900.0,117890.0,0.2485]
[1760118861374,1.71422494,117900.0,117890.0,0.2485]
[1760118861613,2.04602494,117900.0,117890.0,0.2485]
[1760118861816,1.94702495,117900.0,117890.0,0.2485]
[1760118862017,2.04702494,117900.0,117890.0,0.2485]
[1760118862226,1.63110288,117900.0,117890.0,0.2485]
[1760118862432,1.14990527,117900.0,117890.0,0.2485]
[1760118862638,1.94562121,117900.0,117890.0,0.2485]
[1760118862848,1.61282121,117900.0,117890.0,0.2485]
[1760118863054,1.84562122,117900.0,117890.0,0.2485]
[1760118863259,1.61282121,117900.0,117890.0,0.2485]
[1760118863469,1.94562121,117900.0,117890.0,0.2485]
[1760118863872,1.94462121,117900.0,117890.0,0.2485]
[1760118864317,1.94562121,117900.0,117890.0,0.2485]
[1760118864730,1.94462121,117900.0,117890.0,0.2485]
[1760118865388,1.44218593,117900.0,117890.0,0.2485]
[1760118865631,1.42417121,117900.0,117890.0,0.2485]
[1760118866294,1.42417121,117900.0,117890.0,0.41814967]
[1760118866507,1.18984593,117900.0,117890.0,0.41814967]
[1760118866746,1.20484593,117900.0,117890.0,0.41814967]
[1760118866957,0.57876527,117900.0,117890.0,0.41814967]
[1760118867170,1.14015593,117900.0,117890.0,0.41914967]
[1760118867379,1.20484593,117900.0,117890.0,0.41914967]
[1760118867770,0.89571593,117900.0,117890.0,0.41914967]
[1760118868055,1.14015593,117900.0,117890.0,0.41914967]
[1760118868269,1.20163593,117900.0,117890.0,0.41914967]
[1760118868479,1.37127121,117900.0,117890.0,0.2495]
[1760118868693,0.62172527,117900.0,117890.0,0.41914967]
[1760118868914,1.41744121,117900.0,117890.0,0.41914967]
[1760118869127,1.51577121,117900.0,117890.0,0.2495]
[1760118869380,1.85577121,117900.0,117890.0,0.2495]
[1760118870019,0.54764999,117900.0,117890.0,0.2495]
[1760118870230,1.54159593,117900.0,117890.0,0.2495]
[1760118870433,1.71123121,117900.0,117890.0,0.41914967]
[1760118870672,1.85573121,117900.0,117890.0,0.2495]
[1760118871092,1.58776593,117900.0,117890.0,0.41914967]
[1760118871331,1.48011593,117900.0,117890.0,0.2495]
[1760118871540,0.50972165,117840.0,117810.0,0.04594]
[1760118871755,1.06546639,117820.0,117810.0,0.04594]
[1760118872009,1.51311639,117820.0,117810.0,0.04594]
[1760118872215,1.52158692,117820.0,117810.0,0.04594]
[1760118872427,1.52158692,117820.0,117810.0,0.10805]
[1760118873358,1.52158692,117820.0,117810.0,0.10905]
[1760118873575,1.52158692,117820.0,117810.0,0.10805]
[1760118874015,1.52158692,117820.0,117810.0,0.10905]
[1760118874229,1.52158692,117820.0,117810.0,0.04694]
[1760118874518,1.52158692,117820.0,117810.0,0.10905]
[1760118874519,1.76842692,117820.0,117810.0,0.10905]
[1760118874965,1.65218639,117820.0,117810.0,0.12602648]
[1760118875184,1.65214639,117820.0,117810.0,0.21930648]
[1760118875405,1.40546639,117820.0,117810.0,0.11005]
[1760118875627,1.3054664,117820.0,117810.0,0.20233]
[1760118875838,1.40546639,117820.0,117810.0,0.20233]
[1760118876047,1.31214639,117820.0,117810.0,0.20233]
[1760118877028,1.31944639,117820.0,117810.0,0.11005]
[1760118877243,1.36561639,117820.0,117810.0,0.11005]
[1760118877463,1.35831639,117820.0,117810.0,0.11005]
[1760118877677,1.36652639,117820.0,117810.0,0.11005]
[1760118877895,1.36652639,117820.0,117810.0,0.04794]
[1760118878354,1.36652639,117820.0,117810.0,0.11005]
[1760118878572,1.81881237,117820.0,117810.0,0.002]
[1760118879455,1.72217237,117820.0,117810.0,0.002]
[1760118879683,1.72217237,117820.0,117810.0,0.001]
[1760118879930,0.26976486,117810.0,117800.0,0.21571928]
[1760118880138,0.09999999,117810.0,117800.0,0.45323134]
[1760118880359,0.89571593,117810.0,117800.0,0.45323134]
[1760118880584,0.51624486,117810.0,117800.0,0.28345206]
[1760118880824,1.14219593,117810.0,117800.0,0.45323134]
[1760118881093,0.89571593,117810.0,117800.0,0.45323134]
[1760118881310,0.09999999,117810.0,117800.0,0.45423134]
[1760118883932,0.79586737,117840.0,117810.0,0.16976487]
[1760118884160,0.79586737,117840.0,117820.0,0.29075979]
[1760118884161,0.09999999,117830.0,117820.0,0.29075979]
[1760118884386,0.89571593,117830.0,117820.0,0.44516252]
[1760118885454,0.89571593,117830.0,117820.0,0.44521252]
[1760118886065,0.09999999,117830.0,117820.0,0.44521252]